fUST/lending_fUST_20240729
["ID","MTS","AMOUNT","RATE_DAILY","PERIOD"]
[333491262,1722195044304,-500.0,0.00014959,2]
[333491264,1722195044313,-500.0,0.00014959,2]
[333491265,1722195044322,-507.20628239,0.0001496,2]
[333491267,1722195044332,-502.3462927,0.0001496,2]
[333491269,1722195044342,-500.0,0.0001496,2]
[333491272,1722195044353,-515.86392777,0.0001496,2]
[333491274,1722195044363,-519.38317831,0.0001496,2]
[333491275,1722195044372,-500.0,0.0001496,2]
[333491277,1722195044382,-516.47459856,0.0001496,2]
[333491279,1722195044391,-500.0,0.00014961,2]
[333491281,1722195044401,-500.0,0.00014961,2]
[333491283,1722195044410,-500.0,0.00014961,2]
[333491285,1722195044420,-500.0,0.00014961,2]
[333491287,1722195044429,-500.0,0.00014961,2]
[333491289,1722195044439,-500.0,0.00014961,2]
[333491291,1722195044449,-500.0,0.00014961,2]
[333491293,1722195044460,-500.0,0.00014961,2]
[333491295,1722195044469,-500.0,0.00014961,2]
[333491297,1722195044479,-500.0,0.00014961,2]
[333491299,1722195044488,-507.21680693,0.00014961,2]
[333491301,1722195044497,-500.0,0.00014961,2]
[333491304,1722195044508,-621.24,0.00014961,2]
[333491305,1722195044517,-500.0,0.00014961,2]
[333491308,1722195044527,-500.0,0.00014961,2]
[333491310,1722195044537,-500.0,0.00014961,2]
[333491312,1722195044547,-500.0,0.00014961,2]
[333491314,1722195044556,-616.32926765,0.00014961,2]
[333491316,1722195044565,-500.0,0.00014961,2]
[333491318,1722195044575,-396.72760412,0.00014961,2]
[333491320,1722195044586,-500.0,0.00014961,2]
[333491322,1722195044597,-500.0,0.00014961,2]
[333491324,1722195044607,-504.354886,0.00014961,2]
[333491326,1722195044619,-500.0,0.00014961,2]
[333491329,1722195044631,-500.0,0.00014961,2]
[333491331,1722195044642,-513.00394085,0.00014961,2]
[333491333,1722195044653,-500.0,0.00014961,2]
[333491335,1722195044663,-500.0,0.00014961,2]
[333491337,1722195044673,-500.0,0.00014961,2]
[333491339,1722195044683,-500.0,0.00014961,2]
[333491341,1722195044692,-500.0,0.00014961,2]
[333491343,1722195044704,-500.0,0.00014961,2]
[333491345,1722195044714,-500.0,0.00014961,2]
[333491347,1722195044724,-592.86738694,0.00014961,2]
[333491349,1722195044733,-500.0,0.00014961,2]
[333491351,1722195044743,-500.0,0.00014961,2]
[333491353,1722195044753,-500.0,0.00014961,2]
[333491355,1722195044762,-500.0,0.00014961,2]
[333491356,1722195044772,-500.0,0.00014961,2]
[333491357,1722195044781,-519.81703122,0.00014961,2]
[333491358,1722195044791,-500.0,0.00014961,2]
[333491359,1722195044800,-500.0,0.00014961,2]
[333491360,1722195044809,-500.0,0.00014961,2]
[333491361,1722195044818,-500.0,0.00014961,2]
[333491363,1722195044827,-448.28821608,0.00014961,2]
[333491365,1722195044836,-500.0,0.00014961,2]
[333491366,1722195044845,-500.0,0.00014961,2]
[333491367,1722195044855,-500.0,0.00014961,2]
[333491368,1722195044864,-500.0,0.00014961,2]
[333491369,1722195044874,-500.0,0.00014961,2]
[333491370,1722195044883,-500.0,0.00014961,2]
[333491371,1722195044892,-500.0,0.00014961,2]
[333491372,1722195044902,-500.0,0.00014963,2]
[333491373,1722195044911,-1763.75,0.00014963,2]
[333491375,1722195044920,-500.0,0.00014963,2]
[333491376,1722195044929,-628.54,0.00014963,2]
[333491378,1722195044939,-670.18,0.00014963,2]
[333491380,1722195044948,-500.0,0.00014963,2]
[333491382,1722195044959,-500.0,0.00014963,2]
[333491384,1722195044968,-500.0,0.00014963,2]
[333491385,1722195044978,-503.15,0.00014963,2]
[333491387,1722195044987,-500.0,0.00014963,2]
[333491389,1722195044998,-500.0,0.00014963,2]
[333491391,1722195045009,-257.27,0.00014963,2]
[333491392,1722195045019,-500.0,0.00014963,2]
[333491393,1722195045029,-983.44,0.00014963,2]
[333491394,1722195045039,-1432.64,0.00014963,2]
[333491395,1722195045048,-500.0,0.00014963,2]
[333491396,1722195045057,-500.0,0.00014963,2]
[333491397,1722195045066,-500.0,0.00014963,2]
[333491398,1722195045075,-465.77,0.00014963,2]
[333491399,1722195045086,-1560.82,0.00014963,2]
[333491400,1722195045095,-500.0,0.00014963,2]
[333491401,1722195045105,-236.69176095,0.00014963,2]
[333491402,1722195045114,-597.36,0.00014963,2]
[333491403,1722195045123,-500.0,0.00014963,2]
[333491404,1722195045132,-500.0,0.00014963,2]
[333491405,1722195045141,-500.0,0.00014963,2]
[333491406,1722195045150,-500.0,0.00014963,2]
[333491407,1722195045159,-500.0,0.00014963,2]
[333491408,1722195045169,-500.0,0.00014963,2]
[333491409,1722195045178,-500.0,0.00014963,2]
[333491410,1722195045188,-150.112233,0.00015,2]
[333491411,1722195045198,-302.33493269,0.00015,2]
[333491412,1722195045208,-303.63824982,0.00015,2]
[333491413,1722195045217,-505.0,0.00015009,2]
[333491414,1722195045226,-150.0,0.00015084,2]
[333491415,1722195045236,-150.112233,0.000151,2]
[333491416,1722195045246,-153.0,0.00015205,2]
[333491417,1722195045255,-294.0479944,0.00015205,2]
[333491418,1722195045265,-206.6937542,0.00015205,2]
[333491419,1722195045275,-294.0479944,0.00015205,2]
[333491420,1722195045284,-153.0,0.00015205,2]
[333491421,1722195045294,-293.8674823,0.00015205,2]
[333491422,1722195045303,-153.0,0.00015205,2]
[333491423,1722195045312,-30916.6269459,0.00015221,2]
[333491424,1722195045322,-151.0,0.00015221,2]
[333491425,1722195045331,-151.0,0.00015221,2]
[333491426,1722195045340,-208.43,0.00015222,2]
[333491427,1722195045350,-51606.34584094,0.00015223,2]
[333491428,1722195045367,-1800.74031522,0.00015223,2]
[333491448,1722196031120,-482.7372859,0.00012189,2]
[333491449,1722196031142,-250.0,0.00012245,2]
[333491450,1722196031163,-166.666666,0.00012249,2]
[333491451,1722196031185,-250.0,0.00012278,2]
[333491452,1722196031209,-250.0,0.00012312,2]
[333491453,1722196031232,-250.0,0.00012345,2]
[333491454,1722196031254,-250.0,0.00012379,2]
[333491455,1722196031276,-250.0,0.00012412,2]
[333491456,1722196031298,-250.0,0.00012446,2]
[333491457,1722196031320,-199.25747375,0.00012456,2]
[333491458,1722196031345,-199.25747367,0.00012462,2]
[333491459,1722196031367,-199.25747367,0.00012467,2]
[333491460,1722196031388,-199.25747367,0.00012473,2]
[333491461,1722196031412,-199.25747367,0.00012479,2]
[333491462,1722196031434,-250.0,0.0001248,2]
[333491463,1722196031455,-199.25747367,0.00012484,2]
[333491464,1722196031476,-199.25747367,0.0001249,2]
[333491465,1722196031497,-199.25747367,0.00012495,2]
[333491466,1722196031518,-199.25747367,0.00012501,2]
[333491467,1722196031539,-199.25747367,0.00012507,2]
[333491468,1722196031561,-199.25747367,0.00012512,2]
[333491469,1722196031583,-250.0,0.00012513,2]
[333491470,1722196031605,-199.25747367,0.00012518,2]
[333491471,1722196031625,-199.25747367,0.00012524,2]
[333491472,1722196031657,-300.0,0.00012524,2]
[333491473,1722196031684,-300.0,0.00012524,2]
[333491474,1722196031707,-199.25747367,0.00012529,2]
[333491475,1722196031730,-250.0,0.00012547,2]
[333491476,1722196031754,-1094.4252309,0.00012556,2]
[333491477,1722196031779,-250.0,0.0001258,2]
[333491478,1722196031808,-250.0,0.00012614,2]
[333491479,1722196031831,-250.0,0.00012648,2]
[333491480,1722196031855,-250.0,0.00012681,2]
[333491481,1722196031880,-250.0,0.00012715,2]
[333491482,1722196031904,-250.0,0.00012748,2]
[333491483,1722196031928,-250.0,0.00012782,2]
[333491484,1722196031952,-250.0,0.00012816,2]
[333491485,1722196031975,-250.0,0.00012849,2]
[333491486,1722196031997,-250.0,0.00012883,2]
[333491487,1722196032020,-158.383163,0.00012986,2]
[333491488,1722196032041,-1000.0,0.00013,13]
[333491489,1722196032062,-166.666666,0.00013084,2]
[333491490,1722196032085,-166.666666,0.00013918,2]
[333491491,1722196032106,-1000.0,0.00014,14]
[333491492,1722196032128,-532.310145,0.00014247,2]
[333491493,1722196032149,-153.0,0.00014478,2]
[333491494,1722196032171,-737.9560437,0.00014478,2]
[333491495,1722196032193,-239.38864153,0.00014589,2]
[333491496,1722196035122,-586.65978055,0.00014589,2]
[333491497,1722196041100,-41.03701609,0.00014589,2]
[333491498,1722196041122,-500.0,0.00014687,2]
[333491499,1722196041142,-500.0,0.00014687,2]
[333491500,1722196041163,-182.03479566,0.00014687,2]
[333491501,1722196050140,-317.96520434,0.00014687,2]
[333491502,1722196050163,-532.69503808,0.00014687,2]
[333491567,1722196232815,-193.368575,0.00014247,2]
[333491568,1722196232825,-758.69975839,0.00014589,2]
[333491569,1722196232835,-740.95845243,0.00014687,2]
[333491570,1722196232845,-901.49,0.00014688,2]
[333491571,1722196232854,-500.0,0.00014688,2]
[333491572,1722196232863,-500.0,0.00014688,2]
[333491573,1722196232872,-640.63,0.00014688,2]
[333491574,1722196232882,-500.0,0.00014688,2]
[333491575,1722196232892,-500.0,0.00014688,2]
[333491576,1722196232901,-191.72936808,0.00014689,2]
[333491577,1722196232910,-517.14225602,0.00014689,2]
[333491578,1722196232919,-626.3132271,0.00014689,2]
[333491579,1722196232929,-500.0,0.00014689,2]
[333491580,1722196232938,-500.0,0.00014689,2]
[333491581,1722196232948,-500.0,0.00014689,2]
[333491582,1722196232957,-161.38434338,0.00014689,2]
[333491583,1722196232968,-338.61565662,0.00014689,2]
[333491584,1722196232980,-207.2599791,0.00014689,2]
[333491596,1722196238614,-500.0,0.00014688,2]
[333491597,1722196238624,-286.6996352,0.00014688,2]
[333491598,1722196238633,-292.7400209,0.00014689,2]
[333491599,1722196238643,-500.0,0.00014689,2]
[333491600,1722196238653,-500.0,0.00014689,2]
[333491601,1722196238662,-500.0,0.00014689,2]
[333491602,1722196238673,-500.0,0.00014689,2]
[333491603,1722196238683,-500.0,0.00014689,2]
[333491604,1722196238693,-83.16177596,0.00014689,2]
[333491610,1722196240604,-416.83822404,0.00014689,2]
[333491611,1722196240615,-500.0,0.00014689,2]
[333491612,1722196240624,-158.7938485,0.00014689,2]
[333491613,1722196240634,-500.0,0.00014689,2]
[333491614,1722196240643,-500.0,0.00014689,2]
[333491615,1722196240654,-1616.77,0.00014689,2]
[333491616,1722196240666,-500.0,0.00014689,2]
[333491617,1722196240676,-614.33,0.00014689,2]
[333491618,1722196240686,-500.0,0.00014689,2]
[333491619,1722196240695,-500.0,0.00014689,2]
[333491620,1722196240704,-328.48444125,0.00014689,2]
[333491621,1722196240713,-500.0,0.00014689,2]
[333491622,1722196240723,-500.0,0.00014689,2]
[333491623,1722196240802,-424.87,0.00014689,2]
[333491624,1722196240833,-500.0,0.00014689,2]
[333491625,1722196240842,-500.0,0.00014689,2]
[333491626,1722196240851,-500.0,0.00014689,2]
[333491627,1722196240861,-500.0,0.00014689,2]
[333491628,1722196240871,-500.0,0.00014689,2]
[333491629,1722196240882,-500.0,0.00014689,2]
[333491630,1722196240891,-500.0,0.00014689,2]
[333491631,1722196240900,-874.52487581,0.00014689,2]
[333491643,1722196243643,-556.23512419,0.00014689,2]
[333491644,1722196243654,-1313.25,0.00014689,2]
[333491645,1722196243665,-589.99,0.00014689,2]
[333491646,1722196243675,-2547.37064008,0.00014689,2]
[333491647,1722196243687,-1021.03935992,0.00014689,2]
[333491648,1722196243697,-547.58,0.00014689,2]
[333491649,1722196243707,-500.0,0.00014689,2]
[333491650,1722196243717,-500.0,0.00014689,2]
[333491651,1722196243727,-500.0,0.00014689,2]
[333491652,1722196243737,-500.0,0.00014689,2]
[333491653,1722196243747,-552.2,0.00014689,2]
[333491654,1722196243757,-500.0,0.00014689,2]
[333491655,1722196243766,-577.7,0.00014689,2]
[333491656,1722196243777,-226.61,0.00014689,2]
[333491657,1722196243786,-526.94940313,0.0001469,2]
[333491658,1722196243797,-430.79653649,0.0001469,2]
[333491667,1722196450088,209.06981655,9.999e-05,2]
[333491669,1722196828131,-209.0,9.999e-05,2]
[333491671,1722196844882,-0.06981655,9.999e-05,2]
[333491673,1722196977055,209.06981655,9.999e-05,2]
[333491674,1722197060063,63.8603669,9.999e-05,2]
[333491675,1722197226168,-223.46014876,9.999e-05,2]
[333491676,1722197226191,-191.49221591,0.00012886,2]
[333491677,1722197226213,-158.332395,0.00012986,2]
[333491678,1722197226234,-181.966678,0.00013088,2]
[333491679,1722197226256,-159.085676,0.00013385,2]
[333491680,1722197226278,-159.085676,0.00013421,2]
[333491681,1722197226302,-159.085676,0.00013458,2]
[333491682,1722197226323,-159.085676,0.00013495,2]
[333491683,1722197226349,-159.085676,0.00013532,2]
[333491684,1722197226371,-159.085676,0.00013568,2]
[333491685,1722197226392,-159.085676,0.00013605,2]
[333491686,1722197226414,-159.085676,0.00013642,2]
[333491687,1722197226435,-28.59950911,0.00013678,2]
[333491688,1722197231148,-416.081333,0.00012786,2]
[333491689,1722197232205,-779.46350902,0.00012786,2]
[333491690,1722197232229,-130.48616689,0.00013678,2]
[333491691,1722197232253,-159.085676,0.00013715,2]
[333491692,1722197232276,-159.085676,0.00013752,2]
[333491693,1722197232301,-93.73950541,0.00013789,2]
[333491694,1722197246115,-65.34617059,0.00013789,2]
[333491695,1722197246138,-159.085676,0.00013825,2]
[333491696,1722197246162,-159.085676,0.00013862,2]
[333491697,1722197246184,-159.085676,0.00013899,2]
[333491698,1722197246208,-159.085676,0.00013935,2]
[333491699,1722197246234,-63.77508942,0.00013972,2]
[333491700,1722197247101,-95.31058658,0.00013972,2]
[333491701,1722197247128,-181.966678,0.00013981,2]
[333491702,1722197247150,-22.72273542,0.00014009,2]
[333491705,1722197361106,-240.198569,0.00012119,2]
[333491742,1722197432871,-158.342719,0.00012986,2]
[333491744,1722197432881,-102.21368251,0.000133,2]
[333491746,1722197432893,-70.42368149,0.000133,2]
[333491748,1722197432902,-199.1129963,0.00013699,2]
[333491761,1722197433018,-172.637364,0.00013753,2]
[333491763,1722197433028,-136.36294058,0.00014009,2]
[333491765,1722197433038,-159.085676,0.00014045,2]
[333491767,1722197433048,-159.085676,0.00014082,2]
[333491769,1722197433058,-423.8763614,0.00014178,2]
[333491772,1722197433068,-172.637364,0.00014207,2]
[333491774,1722197433078,-522.689257,0.00014247,2]
[333491776,1722197433087,-165.403427,0.00014247,2]
[333491778,1722197433097,-2917.7978988,0.00014337,2]
[333491835,1722197438694,-1049.9888563,0.00014337,2]
[333491836,1722197438706,-362.24620212,0.00014416,2]
[333491837,1722197438715,-172.637364,0.0001466,2]
[333491838,1722197438725,-300.0,0.00014688,2]
[333491839,1722197438734,-371.68578033,0.00014689,2]
[333491840,1722197438744,-500.0,0.00014689,2]
[333491841,1722197438753,-500.0,0.00014689,2]
[333491842,1722197438763,-500.0,0.00014689,2]
[333491843,1722197438773,-658.05,0.00014689,2]
[333491844,1722197438782,-500.0,0.00014689,2]
[333491845,1722197438792,-500.0,0.00014689,2]
[333491846,1722197438802,-500.0,0.00014689,2]
[333491847,1722197438811,-500.0,0.00014689,2]
[333491848,1722197438820,-500.0,0.00014689,2]
[333491849,1722197438830,-500.0,0.00014689,2]
[333491850,1722197438840,-500.0,0.00014689,2]
[333491851,1722197438849,-500.0,0.00014689,2]
[333491852,1722197438859,-565.72,0.00014689,2]
[333491853,1722197438868,-500.0,0.00014689,2]
[333491854,1722197438878,-221.08290026,0.00014689,5]
[333491855,1722197438888,-563.72858862,0.0001469,2]
[333491856,1722197438898,-1154.20781915,0.0001469,2]
[333491857,1722197438908,-267.99213488,0.0001469,2]
[333491858,1722197438918,-749.86320985,0.0001469,2]
[333491859,1722197438930,-28158.28566156,0.0001469,2]
[333491860,1722197439341,-1841.71433844,0.0001469,2]
[333491861,1722197439351,-253.48751398,0.00014888,2]
[333491862,1722197439362,-500.0,0.00014963,2]
[333491863,1722197439372,-500.0,0.00014963,2]
[333491864,1722197439381,-500.0,0.00014963,2]
[333491865,1722197439390,-658.05,0.00014963,2]
[333491866,1722197439399,-500.0,0.00014963,2]
[333491867,1722197439409,-500.0,0.00014963,2]
[333491868,1722197439418,-500.0,0.00014963,2]
[333491869,1722197439427,-500.0,0.00014963,2]
[333491870,1722197439437,-565.72,0.00014963,2]
[333491871,1722197439446,-500.0,0.00014963,2]
[333491872,1722197439456,-500.0,0.00014986,2]
[333491873,1722197439466,-1258.54,0.00014986,2]
[333491874,1722197439476,-863.92,0.00014986,2]
[333491875,1722197439485,-621.08,0.00014986,2]
[333491876,1722197439494,-500.0,0.00014986,2]
[333491877,1722197439503,-500.0,0.00014986,2]
[333491878,1722197439513,-500.0,0.00014986,2]
[333491879,1722197439522,-500.0,0.00014986,2]
[333491880,1722197439531,-500.0,0.00014986,2]
[333491881,1722197439543,-500.0,0.00014986,2]
[333491882,1722197439552,-500.0,0.00014986,2]
[333491883,1722197439564,-500.0,0.00014986,2]
[333491884,1722197439573,-1701.12,0.00014986,2]
[333491885,1722197439583,-500.0,0.00014987,2]
[333491886,1722197439592,-500.0,0.00014987,2]
[333491887,1722197439602,-500.0,0.00014987,2]
[333491888,1722197439611,-500.0,0.00014987,2]
[333491889,1722197439621,-500.0,0.00014987,2]
[333491890,1722197439630,-1371.14,0.00014987,2]
[333491891,1722197439639,-500.0,0.00014988,2]
[333491892,1722197439648,-500.0,0.00014988,2]
[333491893,1722197439658,-500.0,0.00014988,2]
[333491894,1722197439668,-252.67989131,0.00014988,2]
[333491895,1722197439677,-500.0,0.00014988,2]
[333491896,1722197439686,-500.0,0.00014988,2]
[333491897,1722197439695,-500.0,0.00014988,2]
[333491898,1722197439705,-500.0,0.00014988,2]
[333491899,1722197439714,-500.0,0.00014988,2]
[333491900,1722197439723,-500.0,0.00014988,2]
[333491901,1722197439732,-500.0,0.00014988,2]
[333491902,1722197439741,-500.0,0.00014988,2]
[333491903,1722197439833,-500.0,0.00014988,2]
[333491904,1722197439842,-601.1,0.00014988,2]
[333491905,1722197439852,-3419.73,0.00014988,2]
[333491906,1722197439862,-500.0,0.00014988,2]
[333491907,1722197439871,-1000.0,0.00015,15]
[333491908,1722197439880,-951.2964008,0.00015,2]
[333491909,1722197439890,-551.12392761,0.00015,2]
[333491912,1722197442830,-2294.96659617,0.00015,2]
[333491913,1722197442840,-783.83053196,0.00015,2]
[333491914,1722197442849,-151.0,0.00015,2]
[333491915,1722197442859,-253.48751396,0.00015019,2]
[333491916,1722197442868,-172.637364,0.00015113,2]
[333491917,1722197442878,-253.48751396,0.0001515,2]
[333491918,1722197442889,-150.112233,0.000152,2]
[333491919,1722197442898,-663.58158444,0.00015223,2]
[333491920,1722197442909,-154.63660398,0.00015223,2]
[333491921,1722197442920,-7965.36559638,0.00015223,2]
[333491922,1722197442930,-151.0,0.00015223,2]
[333491923,1722197442940,-151.0,0.00015223,2]
[333491924,1722197442949,-110.71745505,0.00015223,2]
[333491942,1722197443742,-40.28254495,0.00015223,2]
[333491943,1722197443751,-151.0,0.00015223,2]
[333491945,1722197443761,-151.0,0.00015223,2]
[333491947,1722197443771,-151.0,0.00015223,2]
[333491948,1722197443780,-151.0,0.00015223,2]
[333491949,1722197443790,-5358.72,0.00015233,2]
[333491950,1722197443799,-5358.72,0.00015233,2]
[333491952,1722197443809,-5358.72,0.00015233,2]
[333491954,1722197443818,-5358.72,0.00015233,2]
[333491956,1722197443828,-5358.72,0.00015233,2]
[333491957,1722197443837,-5358.72,0.00015233,2]
[333491958,1722197443847,-5358.72,0.00015233,2]
[333491959,1722197443857,-5358.72,0.00015233,2]
[333491960,1722197443867,-5358.72,0.00015233,2]
[333491961,1722197443877,-1794.70545375,0.00015233,2]
[333491979,1722197446804,-359.4112535,0.00014297,2]
[333491980,1722197446814,-161.0190415,0.00014986,2]
[333491981,1722197447398,-442.1909585,0.00014986,2]
[333491982,1722197447408,-302.33493268,0.00015157,2]
[333491983,1722197447419,-3335.3244179,0.00015233,2]
[333492016,1722198436105,-183.05721049,0.00012886,2]
[333492017,1722198437149,-158.294994,0.00012986,2]
[333492018,1722198437174,-166.096092,0.00013628,2]
[333492019,1722198437196,-261.835068,0.00013699,2]
[333492022,1722198445112,-250.4858114,0.00013699,2]
[333492023,1722198445143,-254.349567,0.00013699,2]
[333492024,1722198445172,-166.096092,0.00013716,2]
[333492025,1722198445198,-166.096092,0.00013805,2]
[333492026,1722198445226,-166.096092,0.00013894,2]
[333492027,1722198445257,-166.096092,0.00013983,2]
[333492028,1722198445284,-166.096092,0.00014071,2]
[333492029,1722198445316,-166.096092,0.0001416,2]
[333492030,1722198445348,-554.445993,0.00014247,2]
[333492031,1722198445375,-185.395217,0.00014247,2]
[333492032,1722198445402,-166.096092,0.00014249,2]
[333492033,1722198445432,-166.096092,0.00014338,2]
[333492034,1722198445459,-746.84610872,0.00014588,2]
[333492035,1722198445486,-300.0,0.00014676,2]
[333492036,1722198445513,-500.0,0.00014677,2]
[333492037,1722198445540,-500.0,0.00014677,2]
[333492038,1722198445566,-500.0,0.00014677,2]
[333492039,1722198445593,-223.223277,0.00014677,2]
[333492040,1722198445622,-500.0,0.00014677,2]
[333492041,1722198445648,-500.0,0.00014677,2]
[333492042,1722198445675,-500.0,0.00014677,2]
[333492043,1722198445705,-500.0,0.00014677,2]
[333492044,1722198445735,-500.0,0.00014677,2]
[333492045,1722198445763,-500.0,0.00014677,2]
[333492046,1722198445792,-500.0,0.00014677,2]
[333492047,1722198445820,-500.0,0.00014677,2]
[333492048,1722198445848,-440.14542609,0.00014677,2]
[333492061,1722198557107,-250.0,0.00010959,2]
[333492086,1722198631951,-149.18,0.00010959,2]
[333492088,1722198631961,-466.194957,0.000125,2]
[333492090,1722198631971,-187.142935,0.00013214,2]
[333492092,1722198631986,-252.2315656,0.00013449,2]
[333492094,1722198632001,-1560.87322854,0.000135,2]
[333492095,1722198632014,-0.71853891,0.00013699,2]
[333492150,1722198640017,-972.0,0.00013699,2]
[333492151,1722198640030,-1229.70043069,0.00013699,2]
[333492152,1722198640040,-300.0,0.00013899,2]
[333492153,1722198640050,-619.61505775,0.000139,2]
[333492168,1722198642955,-499.78027732,0.000139,2]
[333492169,1722198643014,-4852.41989685,0.000139,2]
[333492170,1722198643027,-187.142935,0.00013903,2]
[333492171,1722198643039,-764.72719393,0.00014577,2]
[333492172,1722198643051,-454.89251182,0.00014588,2]
[333492173,1722198643062,-454.89251179,0.00014656,2]
[333492174,1722198643072,-500.0,0.00014674,2]
[333492175,1722198643081,-404.21286744,0.00014674,2]
[333492176,1722198643093,-500.0,0.00014674,2]
[333492178,1722198643103,-500.0,0.00014674,2]
[333492179,1722198643112,-500.0,0.00014674,2]
[333492181,1722198643124,-500.0,0.00014674,2]
[333492182,1722198643134,-500.0,0.00014674,2]
[333492183,1722198643146,-500.0,0.00014674,2]
[333492184,1722198643155,-500.0,0.00014674,2]
[333492185,1722198643166,-500.0,0.00014674,2]
[333492186,1722198643176,-500.0,0.00014674,2]
[333492187,1722198643186,-553.81027238,0.00014674,2]
[333492188,1722198643195,-500.0,0.00014674,2]
[333492189,1722198643204,-3663.40811215,0.00014675,2]
[333492190,1722198643217,-1791.89,0.00014675,2]
[333492195,1722198645946,-2922.47648655,0.00014675,2]
[333492198,1722198646008,-9766.7462578,0.00014675,2]
[333492199,1722198646021,-296.42070891,0.00014676,2]
[333492200,1722198646032,-500.0,0.00014676,2]
[333492201,1722198646042,-500.0,0.00014676,2]
[333492202,1722198646053,-333.99408339,0.00014676,2]
[333492203,1722198646064,-191.90834702,0.00014676,2]
[333492204,1722198646073,-164.34676983,0.00014676,2]
[333492205,1722198646083,-606.59588506,0.00014676,2]
[333492206,1722198646094,-500.0,0.00014676,2]
[333492207,1722198646105,-500.0,0.00014676,2]
[333492208,1722198646117,-194.46725522,0.00014677,2]
[333492209,1722198646128,-500.0,0.00014677,2]
[333492210,1722198646140,-176.05499524,0.00014677,2]
[333492211,1722198646151,-500.0,0.00014677,2]
[333492212,1722198646162,-1095.18,0.00014677,2]
[333492213,1722198646172,-500.0,0.00014677,2]
[333492214,1722198646183,-500.0,0.00014677,2]
[333492215,1722198646192,-500.0,0.00014677,2]
[333492216,1722198646202,-500.0,0.00014677,2]
[333492217,1722198646212,-536.64,0.00014677,2]
[333492218,1722198646221,-500.0,0.00014677,2]
[333492219,1722198646231,-500.0,0.00014677,2]
[333492220,1722198646241,-500.0,0.00014677,2]
[333492221,1722198646250,-500.0,0.00014677,2]
[333492222,1722198646259,-500.0,0.00014677,2]
[333492223,1722198646270,-500.0,0.00014677,2]
[333492224,1722198646279,-500.0,0.00014677,2]
[333492225,1722198646288,-510.91045092,0.00014677,2]
[333492226,1722198646299,-508.8658198,0.00014677,2]
[333492227,1722198646309,-500.0,0.00014677,2]
[333492228,1722198646319,-505.85891023,0.00014677,2]
[333492229,1722198646329,-500.0,0.00014677,2]
[333492230,1722198646341,-51406.0157832,0.00014678,2]
[333492231,1722198646351,-500.0,0.00014678,2]
[333492232,1722198646362,-500.0,0.00014678,2]
[333492233,1722198646373,-500.0,0.00014678,2]
[333492234,1722198646382,-500.0,0.00014678,2]
[333492235,1722198646391,-500.0,0.00014678,2]
[333492236,1722198646401,-500.0,0.00014678,2]
[333492237,1722198646411,-500.0,0.00014678,2]
[333492238,1722198646420,-764.61,0.00014678,2]
[333492239,1722198646429,-500.0,0.00014678,2]
[333492240,1722198646439,-500.0,0.00014678,2]
[333492241,1722198646534,-511.40965846,0.00014678,2]
[333492242,1722198646544,-500.0,0.00014678,2]
[333492243,1722198646553,-500.0,0.00014678,2]
[333492244,1722198646563,-516.35615577,0.00014678,2]
[333492245,1722198646572,-500.0,0.00014678,2]
[333492246,1722198646581,-500.0,0.00014678,2]
[333492247,1722198646590,-500.0,0.00014678,2]
[333492248,1722198646599,-500.0,0.00014678,2]